[Event "Velammal AICF Women GM 2024"]
[Site "Chennai"]
[Date "2024.03.18"]
[Round "1.6"]
[White "Gomes, Mary Ann"]
[Black "Franco Valencia, Angela"]
[Result "1-0"]
[ECO "A07"]
[WhiteElo "2322"]
[BlackElo "2095"]
[Annotator "TA"]
[PlyCount "59"]
[EventDate "2024.03.18"]
[EventCountry "IND"]
[SourceTitle "playchess.com"]
[Source "ChessBase"]
[SourceQuality "1"]
[TimeControl "5400+30"]

{[%evp 9,59,18,17,3,26,24,25,16,26,16,19,0,13,-11,7,10,38,-16,27,33,27,31,47,39,40,37,31,50,38,33,20,45,43,13,237,236,277,177,166,139,392,418,626,622,593,620,640,630,601,569,2597,1376]} 1. Nf3 {[%emt 0:00:21]} d5 {[%emt 0:05:00]} 2. b3 {[%emt 0:02:40]} Nf6 {[%emt 0:00:46]} 3. Bb2 {[%emt 0:00:06]} Bf5 {[%emt 0:03:14]} 4. g3 {[%emt 0:01:37]} e6 {[%emt 0:01:26]} 5. Bg2 {[%emt 0:00:07]} h6 {[%emt 0:01:19]} 6. d3 {[%emt 0:00:13]} Bb4+ {[%emt 0:02:54]} 7. Nbd2 {[%emt 0:01:27]} Nbd7 {[%emt 0:00:24]} 8. O-O {[%emt 0:01:15][%cal Oe2e4] White has an edge.} O-O {[%emt 0:00:26]} 9. h3 {[%emt 0:08:16]} (9. Re1 {looks sharper.} c6 10. e4 Bg4 11. a3) 9... Bh7 {[%emt 0:05:23]} 10. a3 {[%emt 0:00:00]} Be7 {[%emt 0:03:03]} 11. Qe1 {[%emt 0:04:36]} c5 {[%emt 0:02:43]} 12. e4 {[%emt 0:04:43]} b5 {[%emt 0:05:06]} 13. Qe2 {[%emt 0:09:16]} (13. a4 $14) 13... a5 {[%emt 0:05:04]} 14. a4 {[%emt 0:00:00]} bxa4 15. Rxa4 {[%emt 0:03:21]} Nb6 {[%emt 0:00:57]} 16. Ra2 {[%emt 0:09:30]} a4 {[%emt 0:16:33]} 17. Rfa1 {[%emt 0:00:00]} axb3 {[%emt 0:05:02]} 18. Rxa8 {[%emt 0:00:00]} Nxa8 {[%emt 0:06:35]} 19. Nxb3 {[%emt 0:05:42][%cal Bd2b3,Bb3a5,Ba5c4][%mdl 32]} (19. Ne5 {feels hotter.} bxc2 20. Nc6 Qd7 21. exd5 Bd6 22. Bxf6 gxf6 23. Ne4) 19... dxe4 {[%emt 0:00:00]} 20. Ne5 {[%emt 0:00:00]} exd3 {[%emt 0:07:08]} 21. cxd3 {[%emt 0:00:00]} Qb6 $2 {[%emt 0:03:31] [#]} (21... Nb6 $11 {and Black is okay.}) 22. Na5 $1 $18 {[%emt 0:00:21][%mdl 1024] White has strong compensation.} Nc7 {[%emt 0:08:34]} 23. Nac4 {[%emt 0:01:49]} Qb5 {[%emt 0:02:24]} 24. Nc6 {[%emt 0:06:54]} Re8 $2 {[%emt 0:04:28][%mdl 8192] This costs Black the game.} (24... Ncd5 $16 {might work better.} 25. Bxd5 Nxd5 26. Nxe7+ Nxe7) 25. Ra7 {[%emt 0:02:01]} ({But not} 25. Qe5 Bxd3 26. Qxc7 Bxc4 $18) 25... Ncd5 {[%emt 0:05:46]} (25... Qb3 $142 26. Rxc7 Bf8) 26. Bxd5 {[%emt 0:05:59] White is clearly winning.} (26. Bxf6 Qb1+ 27. Kh2 Bxd3 28. Nxe7+ Rxe7 $16) 26... Nxd5 {[%emt 0:00:09]} 27. Nxe7+ {[%emt 0:00:12]} Rxe7 {[%emt 0:02:10]} 28. Ra8+ {[%emt 0:02:20]} Re8 {[%emt 0:00:38]} 29. Nd6 {[%emt 0:00:08][%csl LRb5,LRe8]} Nc3 {[%emt 0:00:51]} 30. Qe5 {[%emt 0:01:38] Weighted Error Value: White=0.11 (very precise) /Black=0.49.  Loses game:     	---       	Black=2      Mistake:       	White=1     	Black=1      Inaccurate:     	White=2     	Black=2      OK:         	White=10    	Black=5      Best:        	White=1     	---        Strong:       	White=1     	---} 1-0

[Event "Velammal AICF Women GM 2024"]
[Site "Chennai"]
[Date "2024.03.19"]
[Round "2.1"]
[White "Bommini Mounika Akshaya"]
[Black "Franco Valencia, Angela"]
[Result "0-1"]
[ECO "A80"]
[WhiteElo "2134"]
[BlackElo "2095"]
[Annotator "RC"]
[PlyCount "68"]
[EventDate "2024.03.18"]
[EventType "tourn"]
[EventCountry "IND"]
[SourceTitle "playchess.com"]
[Source "ChessBase"]
[SourceQuality "1"]
[TimeControl "5400+30"]

1. d4 {[%emt 0:02:01]} f5 {[%emt 0:00:32]} 2. Nc3 {[%emt 0:00:42]} Nf6 {[%emt 0:00:12]} 3. Bf4 {[%emt 0:00:18]} e6 {[%emt 0:00:32]} 4. g4 {[%emt 0:00:57]} Nxg4 {[%emt 0:00:20]} 5. e4 {[%emt 0:01:51]} d5 {[%emt 0:00:25]} 6. Nb5 {[%emt 0:01:30]} Na6 {[%emt 0:11:23]} 7. e5 {[%emt 0:18:38]} g5 {[%emt 0:09:10]} 8. h3 {[%emt 0:12:02]} Nh6 {[%emt 0:00:28]} 9. Qh5+ {[%emt 0:03:14]} Nf7 {[%emt 0:00:05]} 10. Bd2 {[%emt 0:04:16]} Nb4 {[%emt 0:03:48]} 11. O-O-O {[%emt 0:10:17]} Nxa2+ {[%emt 0:06:38]} 12. Kb1 {[%emt 0:00:07]} a6 {[%emt 0:01:44]} 13. Bxg5 {[%emt 0:04:33]} Be7 {[%emt 0:17:06]} 14. Bxe7 {[%emt 0:10:59]} Qxe7 {[%emt 0:02:38]} 15. Nxc7+ {[%emt 0:02:42]} Qxc7 {[%emt 0:00:06]} 16. Kxa2 {[%emt 0:00:21]} Qxc2 {[%emt 0:00:53]} 17. Bd3 {[%emt 0:04:47]} Qa4+ {[%emt 0:06:02]} 18. Kb1 {[%emt 0:00:06]} Bd7 {[%emt 0:02:23]} 19. Nf3 {[%emt 0:01:48]} h6 {[%emt 0:02:23]} 20. Bc2 {[%emt 0:08:43]} Qb4 {[%emt 0:02:01]} 21. Rhg1 {[%emt 0:03:11]} Rf8 {[%emt 0:03:42]} 22. Rg7 {[%emt 0:01:52]} Rc8 {[%emt 0:02:21]} 23. Bxf5 {[%emt 0:06:11]} exf5 {[%emt 0:01:33]} 24. e6 {[%emt 0:00:37]} Bxe6 {[%emt 0:00:08]} 25. Qg6 {[%emt 0:00:43]} Rc6 {[%emt 0:00:22]} 26. Re1 {[%emt 0:00:30]} Ke7 {[%emt 0:01:35]} 27. Qxh6 {[%emt 0:00:29]} Qb3 {[%emt 0:03:42]} 28. Qf4 {[%emt 0:00:29]} Qc2+ {[%emt 0:09:30]} 29. Ka1 {[%emt 0:00:01]} Rb6 {[%emt 0:02:11]} 30. Qd2 {[%emt 0:00:58]} Qxd2 {[%emt 0:02:30]} 31. Nxd2 {[%emt 0:00:01]} Kd8 {[%emt 0:04:23]} 32. Rg6 {[%emt 0:00:37]} Re8 {[%emt 0:00:11]} 33. Nf3 {[%emt 0:00:44]} Rc6 {[%emt 0:00:24]} 34. Rf6 {[%emt 0:00:41]} Re7 {[%emt 0:01:26]} 0-1

[Event "Velammal AICF Women GM 2024"]
[Site "Chennai"]
[Date "2024.03.19"]
[Round "2.2"]
[White "Monnisha G K"]
[Black "Gomes, Mary Ann"]
[Result "0-1"]
[ECO "B90"]
[WhiteElo "2202"]
[BlackElo "2322"]
[Annotator "TA"]
[PlyCount "62"]
[EventDate "2024.03.18"]
[EventType "tourn"]
[EventCountry "IND"]
[SourceTitle "playchess.com"]
[Source "ChessBase"]
[SourceQuality "1"]
[TimeControl "5400+30"]

{[%evp 12,62,18,2,16,11,8,9,21,0,25,-60,-53,-91,-96,-97,-95,-139,-97,-96,-92,-170,-168,-345,-342,-304,0,-243,-238,-839,-241,-237,-226,-261,-257,-240,-253,-689,-566,-629,-620,-1893,-1146,-1564,-1664,-1509,-1608,-4827,-1672,-29975,-10556,-29983,-29983]} 1. e4 {[%emt 0:00:06]} c5 {[%emt 0:00:10]} 2. Nf3 {[%emt 0:00:04]} d6 {[%emt 0:00:06]} 3. d4 {[%emt 0:00:05]} cxd4 {[%emt 0:00:05]} 4. Nxd4 {[%emt 0:00:03]} Nf6 {[%emt 0:00:09]} 5. Nc3 {[%emt 0:00:05]} a6 {[%emt 0:00:05]} 6. h3 {[%emt 0:00:10]} e5 {[%emt 0:00:06]} 7. Nde2 {[%emt 0:00:00]} h5 {[%emt 0:00:14]} 8. g3 {[%emt 0:00:07]} Be6 {[%emt 0:00:59]} 9. Bg5 {[%emt 0:00:23]} Nbd7 {[%emt 0:00:17] The position is equal.} 10. Bg2 {[%emt 0:00:09]} Be7 {[%emt 0:00:25]} 11. Bxf6 {[%emt 0:00:39]} (11. O-O $11) 11... Nxf6 $15 {[%emt 0:00:12]} 12. Nd5 {[%emt 0:01:10]} Nxd5 {[%emt 0:02:00]} 13. exd5 {[%emt 0:00:09]} Bd7 {[%emt 0:00:03]} 14. O-O {[%emt 0:06:35]} Qc8 {[%emt 0:04:36]} 15. Kh2 {[%emt 0:00:47]} g5 {[%emt 0:01:09] Black is more active.} 16. f4 {[%emt 0:20:24]} (16. Rc1 $17) 16... h4 $1 $19 {[%emt 0:06:09]} 17. fxe5 $2 {[%emt 0:03:53]} (17. f5 Bxf5 18. g4 Bxc2 19. Qe1) 17... hxg3+ $1 {[%emt 0:00:10]} 18. Kxg3 {[%emt 0:00:22]} (18. Nxg3 Bxh3 19. Qe1 Bxg2+ (19... Qxc2 $2 20. Rf2 $19) 20. Kxg2 Qh3+ (20... Qxc2+ 21. Rf2 $11) 21. Kf3 Rh4 22. exd6 Rf4+ 23. Ke2 Bxd6 24. Rxf4 Bxf4 (24... gxf4 25. Ne4 $17)) 18... g4 $2 {[%emt 0:07:23]} (18... Bxh3 19. e6 Bxg2 20. Qd4 $11) (18... dxe5 $19 {[%cal Rd7h3]} 19. d6 Bxh3 20. d7+ Bxd7) 19. Rxf7 $2 {[%emt 0:20:06] [#]} gxh3 $1 {[%emt 0:04:25]} ({Don't take} 19... Kxf7 20. e6+ Ke8 21. Nf4) 20. Nf4 $2 {[%emt 0:18:57]} (20. Be4 Kxf7 21. e6+ Kf8 22. Qd4 Rg8+ 23. Kh2) 20... dxe5 $2 {[%emt 0:03:28]} ({Not} 20... Kxf7 21. e6+ Ke8 22. exd7+ Qxd7 23. Bxh3 Bh4+ 24. Kf3 $17) (20... Bh4+ 21. Kh2 hxg2 (21... Kxf7 22. e6+ Ke8 23. Be4 $11) (21... dxe5 22. Ng6 $17)) 21. Rxe7+ {[%emt 0:06:43]} Kxe7 {[%emt 0:00:34]} 22. Ng6+ {[%emt 0:00:22] [#]} Kf6 $1 {[%emt 0:10:20]} 23. Be4 {[%emt 0:01:39] Black must now prevent Qf3+.} Bf5 $1 {[%emt 0:04:22]} 24. Qd3 {[%emt 0:05:06]} (24. Qf3 Rg8 (24... Kxg6 25. Kh2 $15) 25. Rf1 Rxg6+ 26. Kh2 Rg2+ 27. Kh1) 24... Kxg6 {[%emt 0:02:31]} 25. Rf1 {[%emt 0:00:35]} Rh5 {[%emt 0:04:44] Strongly threatening ...h2.} 26. Bxf5+ {[%emt 0:03:48]} Rxf5 {[%emt 0:00:08]} 27. Qe4 {[%emt 0:02:56]} Qd7 {[%emt 0:03:17] Threatens to win with ...Rh8.} 28. Kh2 {[%emt 0:00:54]} Rh8 {[%emt 0:00:19] ...Kf6 is the strong threat.} 29. Rg1+ {[%emt 0:01:57]} Kf6 {[%emt 0:00:28]} 30. Qe3 {[%emt 0:00:13] Inhibits Rf2+.} Qxd5 {[%emt 0:02:04][%cal Od5d4] ( -> ...Qd4!)} 31. Qb6+ {[%emt 0:00:14]} Qc6 {[%emt 0:00:07] Weighted Error Value: White=1.48/Black=0.38.  Loses game:     	White=1     	---        Missed win:     	---       	Black=1      Mistake:       	White=5     	Black=1      Inaccurate:     	White=3     	Black=1      OK:         	White=2     	Black=5      Best:        	White=2     	---        Strong:       	---       	Black=3} 0-1

[Event "Velammal AICF Women GM 2024"]
[Site "Chennai"]
[Date "2024.03.19"]
[Round "2.3"]
[White "Enkhtuul, Altan-Ulzii"]
[Black "Maisuradze, Nino"]
[Result "1/2-1/2"]
[ECO "A75"]
[WhiteElo "2195"]
[BlackElo "2254"]
[Annotator "TA"]
[PlyCount "43"]
[EventDate "2024.03.18"]
[EventType "tourn"]
[EventCountry "IND"]
[SourceTitle "playchess.com"]
[Source "ChessBase"]
[SourceQuality "1"]
[TimeControl "5400+30"]

{[%evp 24,43,45,54,81,88,66,73,83,59,76,69,81,87,77,0,0,0,82,0,0,0]} 1. d4 {[%emt 0:00:03]} Nf6 {[%emt 0:00:03]} 2. Nf3 {[%emt 0:00:08]} c5 {[%emt 0:01:09]} 3. d5 {[%emt 0:01:12]} e6 {[%emt 0:08:51]} 4. c4 {[%emt 0:07:15]} exd5 {[%emt 0:00:00]} 5. cxd5 {[%emt 0:00:03]} d6 {[%emt 0:00:00]} 6. Nc3 {[%emt 0:00:07]} g6 {[%emt 0:00:00]} 7. e4 {[%emt 0:00:04]} a6 {[%emt 0:00:00]} 8. a4 {[%emt 0:00:06]} Bg4 {[%emt 0:00:00]} 9. Be2 {[%emt 0:02:14]} Bxf3 {[%emt 0:02:41]} 10. Bxf3 {[%emt 0:00:42]} Bg7 {[%emt 0:00:25]} 11. O-O {[%emt 0:00:30]} O-O {[%emt 0:01:13]} 12. Bf4 {[%emt 0:01:12]} Re8 {[%emt 0:02:48]} 13. Re1 {[%emt 0:01:29]} Qc7 {[%emt 0:15:10] [#]} 14. e5 $1 {[%emt 0:22:21]} dxe5 {[%emt 0:00:34]} 15. d6 {[%emt 0:00:16]} Qb6 {[%emt 0:01:24] White is better.} 16. a5 {[%emt 0:04:07] White is more active.} Qxb2 {[%emt 0:03:03]} 17. Bd2 {[%emt 0:04:46] Ra2 is the strong threat. This pair of bishops is nice.} Nc6 {[%emt 0:09:52]} 18. Ra2 {[%emt 0:26:08][%mdl 1024] White has strong compensation.} Qb4 {[%emt 0:00:23]} 19. Ra4 {[%emt 0:00:22]} (19. Nd5 $5 Qd4 20. Ra4 $16) 19... Qb2 {[%emt 0:00:29]} 20. Ra2 {[%emt 0:00:52]} Qb4 {[%emt 0:00:06] [#]} 21. Ra4 {[%emt 0:00:35]} (21. Nd5 $1 $16 {[%cal Rd5b4]} Qd4 22. Ra4) 21... Qb2 $11 {[%emt 0:00:06]} 22. Ra2 {[%emt 0:00:08] Weighted Error Value: White=0.22 (precise) /Black=0.05 (flawless) .  Mistake:       	White=1     	---        OK:         	White=4     	Black=6      Best:        	---       	Black=1      Brilliant:      	White=1     	---} 1/2-1/2

[Event "Velammal AICF Women GM 2024"]
[Site "Chennai"]
[Date "2024.03.19"]
[Round "2.4"]
[White "Uuriintuya, Uurtsaikh"]
[Black "Sedina, Elena"]
[Result "1/2-1/2"]
[ECO "C09"]
[WhiteElo "2288"]
[BlackElo "2161"]
[Annotator "RC"]
[PlyCount "110"]
[EventDate "2024.03.18"]
[EventType "tourn"]
[EventCountry "IND"]
[SourceTitle "playchess.com"]
[Source "ChessBase"]
[SourceQuality "1"]
[TimeControl "5400+30"]

1. e4 {[%emt 0:00:07]} e6 {[%emt 0:03:01]} 2. d4 {[%emt 0:00:19]} d5 {[%emt 0:00:01]} 3. Nd2 {[%emt 0:00:09]} c5 {[%emt 0:00:40]} 4. exd5 {[%emt 0:01:19]} exd5 {[%emt 0:00:11]} 5. Ngf3 {[%emt 0:01:38]} Nc6 {[%emt 0:05:29]} 6. Bb5 {[%emt 0:03:11]} Bd6 {[%emt 0:00:27]} 7. O-O {[%emt 0:00:48]} Nge7 {[%emt 0:00:05]} 8. dxc5 {[%emt 0:01:59]} Bxc5 {[%emt 0:00:07]} 9. Nb3 {[%emt 0:00:10]} Bd6 {[%emt 0:00:25]} 10. c3 {[%emt 0:02:34]} O-O {[%emt 0:00:10]} 11. Bg5 {[%emt 0:05:21]} h6 {[%emt 0:01:39]} 12. Bh4 {[%emt 0:01:01]} Qb6 {[%emt 0:07:07]} 13. Bxe7 {[%emt 0:01:57]} Nxe7 {[%emt 0:01:46]} 14. Be2 {[%emt 0:00:16]} Re8 {[%emt 0:09:00]} 15. Qd4 {[%emt 0:03:15]} Qc7 {[%emt 0:00:58]} 16. Rad1 {[%emt 0:01:28]} Nc6 {[%emt 0:23:52]} 17. Qd3 {[%emt 0:02:19]} a6 {[%emt 0:12:43]} 18. h3 {[%emt 0:10:21]} Be6 {[%emt 0:02:24]} 19. Nbd4 {[%emt 0:07:23]} Rad8 {[%emt 0:00:41]} 20. Rfe1 {[%emt 0:04:42]} Bc8 {[%emt 0:08:43]} 21. Nf5 {[%emt 0:10:28]} Bc5 {[%emt 0:09:20]} 22. N3d4 {[%emt 0:10:22]} Qf4 {[%emt 0:03:21]} 23. Qf3 {[%emt 0:13:31]} Qxf3 {[%emt 0:05:49]} 24. Bxf3 {[%emt 0:00:09]} Nxd4 {[%emt 0:01:12]} 25. Nxd4 {[%emt 0:00:10]} Rxe1+ {[%emt 0:00:20]} 26. Rxe1 {[%emt 0:00:07]} Kf8 {[%emt 0:00:45]} 27. Rd1 {[%emt 0:01:45]} Bb6 {[%emt 0:00:02]} 28. Ne2 {[%emt 0:05:53]} Be6 {[%emt 0:01:30]} 29. Nf4 {[%emt 0:00:19]} d4 {[%emt 0:02:13]} 30. Nxe6+ {[%emt 0:03:17]} fxe6 {[%emt 0:00:01]} 31. Bxb7 {[%emt 0:00:19]} dxc3 {[%emt 0:00:07]} 32. Rxd8+ {[%emt 0:00:09]} Bxd8 {[%emt 0:00:01]} 33. bxc3 {[%emt 0:00:10]} a5 {[%emt 0:00:11]} 34. Kf1 {[%emt 0:01:50]} Bf6 {[%emt 0:01:40]} 35. c4 {[%emt 0:00:18]} Bd4 {[%emt 0:00:01]} 36. Ke2 {[%emt 0:00:51]} Ke7 {[%emt 0:00:11]} 37. f4 {[%emt 0:00:53]} Kd6 {[%emt 0:00:44]} 38. Kd3 {[%emt 0:00:44]} Bg1 {[%emt 0:00:41]} 39. a4 {[%emt 0:02:51]} Bf2 {[%emt 0:00:57]} 40. Ke4 {[%emt 0:00:44]} Bb6 {[%emt 0:00:54]} 41. g4 {[%emt 0:01:49]} Bf2 {[%emt 0:00:19]} 42. Bc8 {[%emt 0:00:31]} Bc5 {[%emt 0:00:40]} 43. h4 {[%emt 0:00:45]} Bb4 {[%emt 0:00:25]} 44. h5 {[%emt 0:01:26]} Ba3 {[%emt 0:00:28]} 45. g5 {[%emt 0:02:04]} Bb4 {[%emt 0:00:19]} 46. Ba6 {[%emt 0:01:01]} Ba3 {[%emt 0:00:28]} 47. Bc8 {[%emt 0:00:34]} Bb4 {[%emt 0:00:05]} 48. Kd4 {[%emt 0:00:35]} Bc5+ {[%emt 0:00:32]} 49. Ke4 {[%emt 0:00:11]} Bb4 {[%emt 0:00:04]} 50. f5 {[%emt 0:00:47]} exf5+ {[%emt 0:00:10]} 51. Kxf5 {[%emt 0:00:06]} Bd2 {[%emt 0:00:18]} 52. Kg6 {[%emt 0:00:48]} Bxg5 {[%emt 0:00:07]} 53. Kxg7 {[%emt 0:00:06]} Kc5 {[%emt 0:00:04]} 54. Ba6 {[%emt 0:00:09]} Kb6 {[%emt 0:00:13]} 55. Bb5 {[%emt 0:00:09]} Kc5 {[%emt 0:00:02]} 1/2-1/2

[Event "Velammal AICF Women GM 2024"]
[Site "Chennai"]
[Date "2024.03.19"]
[Round "2.5"]
[White "Rindhiya V"]
[Black "Chitlange Sakshi"]
[Result "0-1"]
[ECO "C10"]
[WhiteElo "1953"]
[BlackElo "2175"]
[Annotator "RC"]
[PlyCount "96"]
[EventDate "2024.03.18"]
[EventType "tourn"]
[EventCountry "IND"]
[SourceTitle "playchess.com"]
[Source "ChessBase"]
[SourceQuality "1"]
[TimeControl "5400+30"]

1. e4 {[%emt 0:00:02]} e6 {[%emt 0:00:05]} 2. d4 {[%emt 0:00:03]} d5 {[%emt 0:00:05]} 3. Nc3 {[%emt 0:00:03]} Nf6 {[%emt 0:00:05]} 4. Bg5 {[%emt 0:00:04]} dxe4 {[%emt 0:00:04]} 5. Nxe4 {[%emt 0:00:05]} Nbd7 {[%emt 0:00:03]} 6. Nf3 {[%emt 0:01:04]} h6 {[%emt 0:00:07]} 7. Bxf6 {[%emt 0:01:13]} Nxf6 {[%emt 0:00:07]} 8. Nxf6+ {[%emt 0:08:24]} Qxf6 {[%emt 0:00:02]} 9. Bd3 {[%emt 0:00:15]} Bd6 {[%emt 0:01:48]} 10. Qe2 {[%emt 0:01:43]} Bd7 {[%emt 0:05:14]} 11. Ne5 {[%emt 0:03:57]} O-O-O {[%emt 0:01:59]} 12. O-O {[%emt 0:14:26]} Be8 {[%emt 0:02:53]} 13. c3 {[%emt 0:09:10]} c5 {[%emt 0:04:50]} 14. Rfd1 {[%emt 0:08:49]} h5 {[%emt 0:13:19]} 15. a4 {[%emt 0:03:35]} Bc7 {[%emt 0:07:02]} 16. Qe4 {[%emt 0:13:56]} Qe7 {[%emt 0:10:29]} 17. Bc4 {[%emt 0:07:01]} cxd4 {[%emt 0:08:57]} 18. cxd4 {[%emt 0:04:55]} Bxe5 {[%emt 0:24:35]} 19. Qxe5 {[%emt 0:04:16]} Qc7 {[%emt 0:03:40]} 20. Qe3 {[%emt 0:11:54]} Kb8 {[%emt 0:00:30]} 21. b3 {[%emt 0:01:02]} Bc6 {[%emt 0:00:56]} 22. Rac1 {[%emt 0:00:45]} Qd6 {[%emt 0:01:09]} 23. Be2 {[%emt 0:03:03]} Rd7 {[%emt 0:02:24]} 24. Bf3 {[%emt 0:00:34]} Bxf3 {[%emt 0:00:15]} 25. Qxf3 {[%emt 0:00:01]} g6 {[%emt 0:01:30]} 26. Rc5 {[%emt 0:02:31]} Rhd8 {[%emt 0:00:47]} 27. Qc3 {[%emt 0:00:36]} Rc7 {[%emt 0:03:59]} 28. Rc1 {[%emt 0:00:29]} Rxc5 {[%emt 0:02:16]} 29. Qxc5 {[%emt 0:00:21]} Qxc5 {[%emt 0:01:57]} 30. dxc5 {[%emt 0:00:06]} a5 {[%emt 0:00:04]} 31. Kf1 {[%emt 0:01:01]} Rd3 {[%emt 0:00:12]} 32. c6 {[%emt 0:00:04]} Rxb3 {[%emt 0:01:05]} 33. cxb7 {[%emt 0:00:25]} Rb4 {[%emt 0:02:11]} 34. Rc5 {[%emt 0:00:51]} Rxa4 {[%emt 0:00:29]} 35. Rb5 {[%emt 0:00:03]} Ra1+ {[%emt 0:00:31]} 36. Ke2 {[%emt 0:00:05]} a4 {[%emt 0:00:05]} 37. g3 {[%emt 0:01:06]} a3 {[%emt 0:00:17]} 38. Kf3 {[%emt 0:00:07]} Rc1 {[%emt 0:01:36]} 39. Ra5 {[%emt 0:01:18]} Rc3+ {[%emt 0:00:10]} 40. Ke4 {[%emt 0:00:18]} Kxb7 {[%emt 0:00:41]} 41. Ke5 {[%emt 0:00:43]} Rf3 {[%emt 0:00:38]} 42. Kd6 {[%emt 0:00:15]} Kb6 {[%emt 0:00:24]} 43. Ra8 {[%emt 0:00:19]} Kb5 {[%emt 0:00:09]} 44. Ke7 {[%emt 0:00:27]} Kb4 {[%emt 0:00:11]} 45. h4 {[%emt 0:00:27]} Kb3 {[%emt 0:00:42]} 46. Rb8+ {[%emt 0:00:04]} Ka2 {[%emt 0:00:10]} 47. Kf8 {[%emt 0:00:33]} Rxf2 {[%emt 0:00:35]} 48. Kg7 {[%emt 0:00:02]} Ka1 {[%emt 0:00:23]} 0-1

[Event "Velammal AICF Women GM 2024"]
[Site "Chennai"]
[Date "2024.03.19"]
[Round "2.6"]
[White "Velpula Sarayu"]
[Black "Mahalakshmi, M."]
[Result "1/2-1/2"]
[ECO "B12"]
[WhiteElo "2389"]
[BlackElo "2242"]
[Annotator "TA"]
[PlyCount "86"]
[EventDate "2024.03.18"]
[EventType "tourn"]
[EventCountry "IND"]
[SourceTitle "playchess.com"]
[Source "ChessBase"]
[SourceQuality "1"]
[TimeControl "5400+30"]

{[%evp 9,86,-2,7,10,15,14,57,37,50,48,56,36,42,29,45,31,70,59,91,27,43,27,41,17,43,14,84,-5,104,64,137,139,137,135,141,139,135,133,391,292,341,328,344,303,303,288,437,283,273,192,176,185,144,131,135,132,156,164,154,153,144,0,0,0,0,0,0,0,0,0,0,0,0,0,0,0,0,0,0]} 1. e4 {[%emt 0:00:25][%cal Be2e4,Be4e5][%mdl 32]} c6 {[%emt 0:00:05]} 2. d4 {[%emt 0:00:31]} d5 {[%emt 0:00:01]} 3. f3 {[%emt 0:00:31]} e6 {[%emt 0:03:23]} 4. Nc3 {[%emt 0:00:27]} Bb4 {[%emt 0:01:16]} 5. Bd2 {[%emt 0:00:29]} Nf6 {[%emt 0:15:58]} 6. e5 {[%emt 0:02:34]} Nfd7 {[%emt 0:00:24] [#] aiming for ...Qh4+.} 7. f4 {[%emt 0:00:22]} b6 {[%emt 0:06:24]} 8. Nf3 {[%emt 0:02:06] White is slightly better.} Ba6 {[%emt 0:04:29]} 9. Bxa6 {[%emt 0:00:30]} Nxa6 {[%emt 0:00:30]} 10. Qe2 {[%emt 0:03:12]} Nc7 {[%emt 0:01:13]} 11. O-O-O {[%emt 0:04:43]} Qe7 {[%emt 0:10:52]} 12. g4 {[%emt 0:04:37]} b5 {[%emt 0:06:06]} 13. f5 {[%emt 0:11:09]} Nb6 {[%emt 0:02:05]} 14. Be1 {[%emt 0:04:30] White is more active.} (14. f6 $16 gxf6 15. Rdf1 (15. exf6 Qxf6 16. Ne5 Qg7 $16)) 14... a5 {[%emt 0:10:29]} 15. Rf1 {[%emt 0:13:31]} Nc4 {[%emt 0:05:50][%cal Ob4a3]} 16. Bh4 {[%emt 0:03:46]} Qf8 {[%emt 0:04:02]} 17. Nb1 {[%emt 0:02:48]} h6 {[%emt 0:08:27]} (17... h5 $11 {remains equal.} 18. h3 hxg4 19. hxg4 a4) 18. Ne1 {[%emt 0:08:25]} ({White should play} 18. Nfd2 $16) 18... a4 {[%emt 0:06:23]} (18... h5 $1 $11) 19. Nd3 {[%emt 0:06:19]} Be7 {[%emt 0:00:57]} (19... h5 $1 $14) 20. Bxe7 $16 {[%emt 0:10:36]} Qxe7 {[%emt 0:00:39]} 21. f6 $36 {[%emt 0:00:30][%mdl 2048] White is on the roll.} gxf6 {[%emt 0:01:01]} 22. Rxf6 {[%emt 0:00:39]} (22. exf6 Qd6 $16) 22... O-O-O {[%emt 0:04:00]} 23. b3 {[%emt 0:06:46]} Na3 {[%emt 0:02:56][%mdl 8192]} (23... Nb6 $16 24. Rdf1 Rh7) 24. Qd2 {[%emt 0:03:03]} Na6 {[%emt 0:02:00]} 25. Rdf1 {[%emt 0:03:08] [#] Hoping for Qa5.} (25. Rxh6 Rxh6 26. Qxh6 b4 27. bxa4 Nc4 $18) 25... Rh7 {[%emt 0:01:12]} 26. Nxa3 {[%emt 0:02:40]} (26. Rxh6 Rxh6 27. Qxh6 Nb4 28. Nxb4 (28. Nxa3 Nxd3+ 29. Kd2 Nxe5 $11) 28... Qxb4 29. Nxa3 (29. Rxf7 Qe1+ 30. Kb2 Nxb1 $11) 29... Qxa3+ 30. Kb1 Rd7 $18) 26... Qxa3+ {[%emt 0:00:02]} 27. Kb1 {[%emt 0:00:00] And now Qa5 would win.} Rd7 {[%emt 0:01:09]} (27... Qe7 $142 28. Qa5 (28. Rxh6 Rxh6 29. Qxh6 Rg8 $18) 28... Kb7 29. bxa4 h5 30. axb5 cxb5 31. gxh5 (31. Qxb5+ Ka7 $18) 31... Rc8 32. Qxb5+ Ka7) 28. Rxh6 {[%emt 0:00:25]} Nb4 {[%emt 0:01:02]} 29. Nxb4 {[%emt 0:01:32]} (29. Rxh7 $2 {leads to mate.} Qxa2+ 30. Kc1 Qa1#) 29... Rxh6 {[%emt 0:00:06]} 30. Qxh6 {[%emt 0:02:38]} Qxb4 $18 {[%emt 0:00:04][%mdl 4096] Endgame. KQR-KQR} 31. Qe3 {[%emt 0:00:08]} c5 {[%emt 0:01:07]} 32. dxc5 {[%emt 0:02:14] c6 would now be deadly.} d4 {[%emt 0:00:20]} 33. Qe4 {[%emt 0:00:22] White wants to mate with Qa8+.} Qxc5 {[%emt 0:00:16]} 34. h4 {[%emt 0:00:27]} a3 {[%emt 0:01:00]} 35. Rf3 {[%emt 0:01:17]} (35. h5 $16) 35... d3 $11 {[%emt 0:00:56] The position is equal.} 36. Qa8+ {[%emt 0:00:35]} (36. cxd3 {is a self mate.} Qg1+ 37. Kc2 Rc7+) 36... Kc7 {[%emt 0:00:02]} 37. cxd3 {[%emt 0:00:28] Threatens to win with Rf1.} Qg1+ {[%emt 0:00:46]} 38. Kc2 {[%emt 0:00:00]} Qh2+ {[%emt 0:01:09]} 39. Kd1 {[%emt 0:00:37]} Qxa2 {[%emt 0:00:40]} 40. Qa5+ {[%emt 0:00:27]} Kc6 {[%emt 0:00:37]} 41. Qa6+ {[%emt 0:00:32]} Kc7 {[%emt 0:00:12]} 42. Qa5+ {[%emt 0:00:32]} Kc6 {[%emt 0:00:12]} 43. Qa6+ {[%emt 0:00:48]} Kc7 {[%emt 0:00:05] White really could win this.   Weighted Error Value: White=0.24 (precise) /Black=0.29 (precise) .  Loses game:     	---       	Black=1      Mistake:       	White=3     	Black=4      Inaccurate:     	White=3     	Black=4      OK:         	White=15    	Black=15     Best:        	White=2     	Black=2} 1/2-1/2